[Event "127th NZ Congress 2020"]
[Site "Tauranga"]
[Date "2020.01.20"]
[Round "7.10"]
[White "Dowden, R.A. Tony"]
[Black "Ning, Isabelle Yixuan"]
[Result "1-0"]
[ECO "A38"]
[WhiteElo "2056"]
[BlackElo "1662"]
[Annotator "NA RC"]
[PlyCount "101"]
[EventDate "2020.01.14"]
[EventType "swiss"]
[EventCountry "NZL"]
[SourceTitle "playchess.com"]
[Source "ChessBase"]
[SourceQuality "1"]
[TimeControl "40/5400+30:1800+30"]

{[%evp 8,81,9,21,41,4,8,0,32767,32767,32767,32767,32767,32767,32767,32767,32767,57,56,75,88,75,136,32767,69,62,71,32767,32767,39,45,27,65,72,69,58,64,49,102,99,96,100,91,81,136,147,32767,32767,32767,32767,32767,32767,32767,32767,32767,32767,149,32767,32767,32767,189,237,228,227,484,417,389,412,516,523,648,698,714,828,840,775]} 1. Nf3 {[%emt 0:00:00]} Nf6 {[%emt 0:00:00]} 2. c4 {[%emt 0:00:00]} g6 {[%emt 0:00:00]} 3. g3 {[%emt 0:00:00]} Bg7 {[%emt 0:00:00]} 4. Bg2 {[%emt 0:00:00]} O-O {[%emt 0:00:00]} 5. Nc3 {[%emt 0:00:00]} d6 {[%emt 0:00:33]} 6. d3 {[%emt 0:00:12]} c5 {[%emt 0:01:24]} 7. O-O {[%emt 0:00:30]} Nc6 {[%emt 0:02:19]} 8. a3 {[%emt 0:02:14]} a6 {[%emt 0:10:16]} 9. Rb1 {[%emt 0:00:19]} Qc7 {[%emt 0:02:13] A38: Symmetrical English vs ...g6: 4 Bg2 Bg7 5 Nf3 Nf6} (9... Rb8 10. b4 cxb4 11. axb4 b5 12. cxb5 axb5 13. Bd2 Bd7 14. Qc1 Re8 15. Bh6 Bh8 16. h3 d5 17. d4 Bf5 18. Rb3 Ne4 19. Nxe4 dxe4 20. Qxc6 exf3 21. Qxf3 Qxd4 {½-½ (62) Ragger,M (2672)-Giri,A (2732) Warsaw 2013}) 10. b4 {[%emt 0:06:15]} cxb4 {[%emt 0:02:28]} 11. axb4 {[%emt 0:01:50]} Bd7 {[%emt 0:03:48]} 12. b5 {[%emt 0:11:53]} axb5 $146 {[%emt 0:01:55]} ({Predecessor:} 12... Nd8 13. Bg5 e6 14. Qd2 axb5 15. Nxb5 Bxb5 16. Rxb5 Nd7 17. Rfb1 {1-0 (32) Gemy Vargas,J (2383)-Bezerra,F (1899) Rio Branco 2017}) 13. Nxb5 {[%emt 0:04:53]} Qa5 {[%emt 0:03:56]} 14. Bd2 {[%emt 0:10:56]} Qa4 {[%emt 0:02:24]} 15. Nc3 {[%emt 0:09:22]} Qxd1 {[%emt 0:05:50]} 16. Rfxd1 {[%emt 0:00:33]} Rfb8 {[%emt 0:02:15]} 17. Ne1 {[%emt 0:06:23]} Nd8 {[%emt 0:14:05]} 18. Rb3 {[%emt 0:11:35]} Bc6 {[%emt 0:02:19]} 19. Rdb1 {[%emt 0:00:14]} Bxg2 {[%emt 0:06:03]} 20. Kxg2 {[%emt 0:01:33]} Nd7 {[%emt 0:07:32]} 21. Nd5 {[%emt 0:07:27]} e6 {[%emt 0:02:53]} 22. Nb6 {[%emt 0:00:46]} Nxb6 {[%emt 0:00:43]} 23. Rxb6 {[%emt 0:00:06]} Ra2 {[%emt 0:08:08]} 24. Nf3 {[%emt 0:04:20]} Bf8 {[%emt 0:01:30]} 25. Kf1 {[%emt 0:01:32]} Rba8 {[%emt 0:04:35]} (25... f6 $142) 26. Bg5 {[%emt 0:01:05]} Ra1 {[%emt 0:03:06]} 27. Bxd8 {[%emt 0:00:13]} Rxb1+ {[%emt 0:00:07]} 28. Rxb1 {[%emt 0:00:06]} Rxd8 {[%emt 0:00:04]} 29. Rxb7 {[%emt 0:00:14]} h6 {[%emt 0:01:46]} 30. d4 {[%emt 0:04:04]} Ra8 {[%emt 0:03:29]} 31. e3 {[%emt 0:02:24]} Kg7 {[%emt 0:03:01]} 32. g4 {[%emt 0:00:35]} g5 {[%emt 0:01:09]} 33. h4 {[%emt 0:01:24]} Kg6 {[%emt 0:01:18]} (33... gxh4 $16 {was necessary.} 34. Nxh4 Rc8) 34. h5+ {[%emt 0:00:10]} Kf6 {[%emt 0:00:11]} 35. Nd2 {[%emt 0:00:29]} e5 $2 {[%emt 0:01:27]} (35... Kg7 36. Ke2 Ra2) 36. Ne4+ {[%emt 0:00:54]} Kg7 {[%emt 0:00:16]} 37. d5 {[%emt 0:00:32]} Ra1+ {[%emt 0:01:06]} 38. Ke2 {[%emt 0:00:52]} Rg1 {[%emt 0:01:10]} 39. Ng3 {[%emt 0:01:01]} Rc1 {[%emt 0:01:14]} 40. Rc7 {[%emt 0:00:00]} Rc2+ $18 {[%emt 0:00:00]} 41. Kf3 {[%emt 0:00:34]} Kg8 {[%emt 0:05:19]} 42. Rc8 {[%emt 0:02:49]} f6 {[%emt 0:01:14]} 43. Rc7 {[%emt 0:00:25]} Ra2 {[%emt 0:04:50]} 44. Ne4 {[%emt 0:00:52]} Bg7 {[%emt 0:00:45]} 45. Nxd6 {[%emt 0:00:34]} Rd2 {[%emt 0:01:42]} 46. Rc8+ {[%emt 0:03:20]} Bf8 {[%emt 0:01:13]} 47. Ne4 {[%emt 0:00:20]} Rc2 {[%emt 0:00:30]} 48. d6 {[%emt 0:00:56]} Kf7 {[%emt 0:01:50]} 49. c5 {[%emt 0:02:35]} Rc1 {[%emt 0:02:00]} 50. c6 {[%emt 0:02:15]} Rd1 {[%emt 0:01:53]} 51. Rd8 {[%emt 0:33:54]} 1-0

[Event "127th NZ Congress 2020"]
[Site "Tauranga"]
[Date "2020.01.21"]
[Round "8.7"]
[White "Gong, Daniel Hanwen"]
[Black "Reilly, Tim"]
[Result "1/2-1/2"]
[ECO "B07"]
[WhiteElo "2276"]
[BlackElo "2098"]
[Annotator "ChessBase"]
[PlyCount "133"]
[EventDate "2020.01.14"]
[EventType "swiss"]
[EventCountry "NZL"]
[SourceTitle "playchess.com"]
[Source "ChessBase"]
[SourceQuality "1"]
[TimeControl "40/5400+30:1800+30"]

1. d4 {[%emt 0:00:00]} d6 {[%emt 0:00:00]} 2. e4 {[%emt 0:00:00]} Nf6 {[%emt 0:00:05]} 3. Nc3 {[%emt 0:00:00]} g6 {[%emt 0:00:07]} 4. Bf4 {[%emt 0:00:00]} a6 {[%emt 0:02:48]} 5. e5 {[%emt 0:02:30]} Nfd7 {[%emt 0:02:07]} 6. Nf3 {[%emt 0:01:10]} Bg7 {[%emt 0:01:08]} 7. Qd2 {[%emt 0:00:05]} c5 {[%emt 0:21:19]} 8. exd6 {[%emt 0:08:59]} O-O {[%emt 0:09:25]} 9. d5 {[%emt 0:05:02]} exd6 {[%emt 0:01:37]} 10. Be2 {[%emt 0:02:12]} Nf6 {[%emt 0:01:05]} 11. a4 {[%emt 0:01:02]} Bf5 {[%emt 0:01:42]} 12. O-O {[%emt 0:02:13]} Ne4 {[%emt 0:06:14]} 13. Nxe4 {[%emt 0:00:04]} Bxe4 {[%emt 0:00:06]} 14. Ng5 {[%emt 0:03:05]} Bf5 {[%emt 0:00:51]} 15. g4 {[%emt 0:00:30]} Bc8 {[%emt 0:01:05]} 16. Ne4 {[%emt 0:00:05]} f5 {[%emt 0:05:57]} 17. gxf5 {[%emt 0:01:29]} Bxf5 {[%emt 0:00:38]} 18. Nxd6 {[%emt 0:00:29]} Bh3 {[%emt 0:00:53]} 19. Rfb1 {[%emt 0:18:47]} Bd4 {[%emt 0:10:16]} 20. Bf1 {[%emt 0:01:57]} Qh4 {[%emt 0:03:45]} 21. Bg3 {[%emt 0:03:50]} Rxf2 {[%emt 0:04:51]} 22. Kh1 {[%emt 0:28:54]} Qh5 {[%emt 0:16:55]} 23. Qd3 {[%emt 0:00:22]} Qxd5+ {[%emt 0:00:11]} 24. Qe4 {[%emt 0:00:04]} Qxe4+ {[%emt 0:03:12]} 25. Nxe4 {[%emt 0:00:03]} Rxf1+ {[%emt 0:00:14]} 26. Rxf1 {[%emt 0:00:03]} Bxf1 {[%emt 0:00:07]} 27. Rxf1 {[%emt 0:00:01]} Nd7 {[%emt 0:03:11]} 28. c3 {[%emt 0:00:31]} Bg7 {[%emt 0:00:30]} 29. Rd1 {[%emt 0:00:05]} Re8 {[%emt 0:02:20]} 30. Rxd7 {[%emt 0:02:17]} Rxe4 {[%emt 0:00:05]} 31. Rxb7 {[%emt 0:00:03]} Rxa4 {[%emt 0:00:21]} 32. Kg2 {[%emt 0:00:35]} Ra5 {[%emt 0:00:50]} 33. Bd6 {[%emt 0:03:51]} c4 {[%emt 0:00:31]} 34. Kf3 {[%emt 0:03:50]} Bh6 {[%emt 0:00:40]} 35. Ke4 {[%emt 0:02:22]} Bg7 {[%emt 0:01:19]} 36. Rb4 {[%emt 0:00:51]} Ra2 {[%emt 0:00:47]} 37. Kd5 {[%emt 0:00:04]} Ra5+ {[%emt 0:00:37]} 38. Ke6 {[%emt 0:00:18]} h5 {[%emt 0:00:37]} 39. Rxc4 {[%emt 0:00:03]} Rb5 {[%emt 0:00:23]} 40. b4 {[%emt 0:00:00]} Kh7 {[%emt 0:00:00]} 41. Rc7 {[%emt 0:00:35]} Rb6 {[%emt 0:11:40]} 42. c4 {[%emt 0:01:00]} g5 {[%emt 0:01:00]} 43. Kd5 {[%emt 0:00:18]} Kg6 {[%emt 0:01:45]} 44. Kc5 {[%emt 0:00:11]} Bd4+ {[%emt 0:00:05]} 45. Kxd4 {[%emt 0:07:00]} Rxd6+ {[%emt 0:00:06]} 46. Kc5 {[%emt 0:02:14]} Rd2 {[%emt 0:06:04]} 47. Rc6+ {[%emt 0:00:03]} Kf5 {[%emt 0:00:08]} 48. Rxa6 {[%emt 0:00:02]} Rxh2 {[%emt 0:00:06]} 49. b5 {[%emt 0:00:23]} g4 {[%emt 0:00:25]} 50. b6 {[%emt 0:00:40]} Rb2 {[%emt 0:02:34]} 51. Ra5 {[%emt 0:00:57]} g3 {[%emt 0:00:57]} 52. Kc6+ {[%emt 0:00:22]} Kg4 {[%emt 0:00:37]} 53. Rb5 {[%emt 0:01:14]} Rf2 {[%emt 0:04:27]} 54. b7 {[%emt 0:06:29]} Rf8 {[%emt 0:00:21]} 55. b8=Q {[%emt 0:00:05]} Rxb8 {[%emt 0:00:04]} 56. Rxb8 {[%emt 0:00:04]} h4 {[%emt 0:01:36]} 57. Rg8+ {[%emt 0:11:47]} Kf3 {[%emt 0:02:44]} 58. Rf8+ {[%emt 0:01:15]} Kg2 {[%emt 0:00:37]} 59. c5 {[%emt 0:01:01]} h3 {[%emt 0:00:05]} 60. Kd7 {[%emt 0:00:31]} h2 {[%emt 0:00:07]} 61. Rh8 {[%emt 0:00:01]} h1=Q {[%emt 0:00:19]} 62. Rxh1 {[%emt 0:00:04]} Kxh1 {[%emt 0:00:05]} 63. c6 {[%emt 0:00:02]} g2 {[%emt 0:00:14]} 64. c7 {[%emt 0:00:05]} g1=Q {[%emt 0:00:05]} 65. c8=Q {[%emt 0:00:04]} Qg4+ {[%emt 0:00:06]} 66. Kc7 {[%emt 0:00:03]} Qxc8+ {[%emt 0:00:06]} 67. Kxc8 {[%emt 0:00:37]} 1/2-1/2

[Event "127th NZ Congress 2020"]
[Site "Tauranga"]
[Date "2020.01.21"]
[Round "8.10"]
[White "Cilia Vincenti, David"]
[Black "Pinic, Noel"]
[Result "0-1"]
[ECO "A50"]
[WhiteElo "2070"]
[BlackElo "2054"]
[Annotator "NA RC"]
[PlyCount "96"]
[EventDate "2020.01.14"]
[EventType "swiss"]
[EventCountry "NZL"]
[SourceTitle "playchess.com"]
[Source "ChessBase"]
[SourceQuality "1"]
[TimeControl "40/5400+30:1800+30"]

{[%evp 15,83,0,0,0,32767,32767,32767,32767,32767,32767,32767,-47,6,0,0,12,0,0,22,27,22,-5,35,-61,-34,-44,-23,-34,-8,-12,0,10,-2,-24,-19,-25,72,0,0,0,-7,-76,-82,-264,-52,-57,-83,-59,-71,-79,-54,-67,-64,-85,-52,-161,-156,-280,-171,-203,-158,-759,32767,32767,-661,32767,32767,32767,32767,-714]} 1. d4 {[%emt 0:00:44]} Nc6 {[%emt 0:00:00]} 2. c4 {[%emt 0:00:11]} e5 {[%emt 0:00:00]} 3. d5 {[%emt 0:00:16]} Nce7 {[%emt 0:00:02]} 4. Nc3 {[%emt 0:00:17]} Nf6 {[%emt 0:00:16]} 5. e4 {[%emt 0:00:20]} Ng6 {[%emt 0:00:04]} 6. g3 {[%emt 0:00:35]} Bc5 {[%emt 0:00:21] A50: Queen's Fianchetto Defence (1 d4 Nf6 2 c4 b6)} 7. Bg2 {[%emt 0:04:49]} O-O {[%emt 0:01:27]} (7... a6 8. Nge2 O-O 9. O-O d6 10. Qd3 Bd7 11. a3 Qc8 12. b4 Ba7 13. Be3 Bxe3 14. Qxe3 {½-½ (48) Livaic,L (2436)-Tomazini,Z (2411) Slovenia 2016}) 8. h3 {[%emt 0:02:04]} d6 {[%emt 0:00:23]} 9. Nge2 {[%emt 0:00:28]} a5 {[%emt 0:00:53]} 10. O-O {[%emt 0:00:47]} Bd7 {[%emt 0:00:10]} 11. Kh2 $146 {[%emt 0:01:08]} ({Predecessor:} 11. Bd2 Qe7 12. Nc1 h6 13. Nd3 {1-0 (44) Michenka,J (2300)-Novak,I (2300) Czechoslovakia 1991}) 11... h5 {[%emt 0:01:43]} 12. Qc2 {[%emt 0:20:16]} h4 {[%emt 0:04:12]} 13. Nd1 {[%emt 0:06:04]} Nh5 {[%emt 0:06:02]} 14. Be3 {[%emt 0:10:04]} Bxe3 {[%emt 0:01:03]} 15. Nxe3 {[%emt 0:00:30]} Qg5 {[%emt 0:00:28]} 16. Nf5 {[%emt 0:04:52]} Bxf5 {[%emt 0:04:49]} 17. exf5 {[%emt 0:00:10]} Ne7 {[%emt 0:00:32]} 18. Be4 {[%emt 0:02:29]} g6 {[%emt 0:01:09]} 19. gxh4 {[%emt 0:12:27]} (19. g4 $1 $14 Nf6 20. Rae1) 19... Qxh4 {[%emt 0:00:22]} 20. Rg1 $1 {[%emt 0:00:21]} Nf4 {[%emt 0:03:26]} 21. Nxf4 {[%emt 0:00:48]} Qxf4+ {[%emt 0:00:07] Double Attack} 22. Rg3 {[%emt 0:01:19]} Kg7 {[%emt 0:00:12]} 23. Rag1 {[%emt 0:01:59]} Rh8 {[%emt 0:00:13]} 24. Kg2 {[%emt 0:03:39]} Rh4 {[%emt 0:02:36]} 25. Re1 {[%emt 0:11:03]} Rah8 {[%emt 0:04:20]} (25... Kh6 $11 {keeps the balance.}) 26. Ree3 {[%emt 0:04:36]} R8h5 {[%emt 0:06:49]} 27. Rgf3 {[%emt 0:02:50]} Qg5+ $1 {[%emt 0:00:09]} 28. Kf1 {[%emt 0:01:48]} (28. Rg3 $11 Qf6 29. fxg6) 28... Rf4 {[%emt 0:05:02]} ({Avoid the trap} 28... Nxf5 $2 29. Bxf5 Rf4 30. Bg4 $18) ({But not} 28... gxf5 $6 29. Rg3 $11) 29. Rg3 $2 {[%emt 0:02:30]} (29. fxg6 $17 {was necessary.} fxg6 30. c5) 29... Qh4 $2 {[%emt 0:01:24]} (29... Nxf5 $19 30. Bxf5 Qxf5) 30. fxg6 {[%emt 0:01:29]} f5 {[%emt 0:00:52]} 31. Bd3 {[%emt 0:01:26]} Rg5 {[%emt 0:01:24]} 32. Kg2 {[%emt 0:00:33]} Nxg6 {[%emt 0:02:23]} 33. Rxg5 {[%emt 0:01:17]} Qxg5+ {[%emt 0:00:04]} 34. Rg3 {[%emt 0:00:10]} Qf6 {[%emt 0:03:30]} 35. Qd2 {[%emt 0:00:54]} (35. c5 $15) 35... b6 {[%emt 0:01:10]} 36. Qe2 {[%emt 0:01:08]} (36. Kf1 $17) 36... Qh4 {[%emt 0:01:03]} (36... e4 $142 37. Bc2 Qxb2) 37. Qc2 {[%emt 0:00:29]} Kf6 {[%emt 0:00:16]} 38. Qa4 $2 {[%emt 0:01:05] [#]} (38. Bf1 $17) 38... Rxf2+ $1 {[%emt 0:04:00] Clearance} 39. Kxf2 {[%emt 0:00:16]} f4 {[%emt 0:00:16] Pin} 40. Bxg6 {[%emt 0:00:00]} Qxg3+ {[%emt 0:00:00]} 41. Ke2 {[%emt 0:01:25]} Qg2+ {[%emt 0:03:41]} 42. Kd1 $19 {[%emt 0:04:46]} Qf3+ {[%emt 0:01:47]} 43. Kc2 {[%emt 0:02:33]} Kxg6 {[%emt 0:01:26]} 44. Qe8+ {[%emt 0:00:20]} Kf5 {[%emt 0:00:17]} 45. Qf7+ {[%emt 0:04:23]} Ke4 {[%emt 0:00:09]} 46. Qxc7 {[%emt 0:00:57]} Qe2+ {[%emt 0:01:14]} 47. Kb3 {[%emt 0:00:25]} f3 {[%emt 0:03:14]} 48. Qxd6 {[%emt 0:01:39]} Qd3+ {[%emt 0:00:28]} 0-1

[Event "127th NZ Congress 2020"]
[Site "Tauranga"]
[Date "2020.01.22"]
[Round "9.8"]
[White "Bennett, Hilton"]
[Black "Reilly, Tim"]
[Result "0-1"]
[ECO "B09"]
[WhiteElo "1913"]
[BlackElo "2098"]
[Annotator "NA"]
[PlyCount "50"]
[EventDate "2020.01.14"]
[EventType "swiss"]
[EventCountry "NZL"]
[SourceTitle "playchess.com"]
[Source "ChessBase"]
[SourceQuality "1"]
[TimeControl "40/5400+30:1800+30"]

{[%evp 8,50,36,43,52,48,66,-3,27,0,19,0,-10,-42,-17,-18,35,26,22,-59,-20,-54,-25,-35,-35,-87,-86,-75,-85,-91,-66,-79,-75,-189,-213,32767,32767,-573,-684,-633,-711,-641,-617,-578,-394]} 1. e4 {[%emt 0:13:05]} d6 {[%emt 0:00:00]} 2. d4 {[%emt 0:00:21]} g6 {[%emt 0:00:00]} 3. Nc3 {[%emt 0:00:18]} Bg7 {[%emt 0:00:06]} 4. f4 {[%emt 0:00:32]} Nf6 {[%emt 0:00:48]} 5. Nf3 {[%emt 0:00:12]} c5 {[%emt 0:00:24]} 6. Bb5+ {[%emt 0:00:44]} Bd7 {[%emt 0:00:07]} 7. Bxd7+ {[%emt 0:06:51]} (7. e5 $5 {[%cal Re5f6]} Ng4 8. Bxd7+ Qxd7 9. h3 cxd4 10. Qxd4 $14) 7... Nbxd7 {[%emt 0:00:08]} 8. d5 {[%emt 0:01:03] B09: Pirc Defence: Austrian Attack} O-O {[%emt 0:00:24]} 9. O-O {[%emt 0:00:09]} b5 {[%emt 0:19:49]} 10. Qe2 {[%emt 0:02:08]} (10. Qe1 b4 11. Nd1 Re8 12. e5 Nxd5 13. e6 Nf8 14. exf7+ Kxf7 15. Ng5+ Kg8 {0-1 (49) Piorun,K (2633)-Duda,J (2724) Brest 2018}) 10... b4 {[%emt 0:04:15]} 11. Nd1 {[%emt 0:03:37]} e6 {[%emt 0:00:14]} (11... Re8 $11) 12. dxe6 {[%emt 0:06:20]} fxe6 {[%emt 0:00:07]} 13. e5 $146 {[%emt 0:09:37]} (13. a3 $11) ({Predecessor:} 13. Nf2 Nb6 14. a3 a5 15. axb4 axb4 16. Rxa8 Qxa8 {0-1 (45) Marinkov,S (1961)-Sorgic,D (2265) Belgrade 2011}) 13... dxe5 {[%emt 0:00:19]} 14. fxe5 {[%emt 0:11:11]} Ng4 {[%emt 0:26:26]} 15. Bg5 {[%emt 0:06:54]} Qb6 {[%emt 0:01:01]} 16. Ne3 {[%emt 0:03:43]} (16. Nf2 $1 $11 c4 17. Rad1 Ndxe5 18. Nxe5 Nxe5 19. Kh1) 16... Ngxe5 {[%emt 0:02:27]} 17. Rad1 {[%emt 0:05:06]} Nxf3+ {[%emt 0:04:10]} 18. Rxf3 {[%emt 0:00:14]} Ne5 {[%emt 0:01:17]} 19. Rxf8+ {[%emt 0:00:47]} Rxf8 {[%emt 0:00:21]} 20. Nc4 {[%emt 0:02:19]} (20. Be7 $15 Re8 21. Bh4) 20... Nxc4 {[%emt 0:02:14]} 21. Qxc4 {[%emt 0:00:03]} Bxb2 {[%emt 0:02:13]} 22. Rd7 $2 {[%emt 0:09:23]} (22. Be3) 22... Bd4+ {[%emt 0:05:29]} 23. Kh1 {[%emt 0:00:04] [#]} Qc6 $1 {[%emt 0:01:52]} 24. Rd8 {[%emt 0:08:28]} Rxd8 {[%emt 0:03:02]} 25. Bxd8 $19 {[%emt 0:00:09]} Qd5 {[%emt 0:00:20]} 0-1

[Event "127th NZ Congress 2020"]
[Site "Tauranga"]
[Date "2020.01.22"]
[Round "9.10"]
[White "Dowden, R.A. Tony"]
[Black "Winter, Ryan"]
[Result "1/2-1/2"]
[ECO "B18"]
[WhiteElo "2056"]
[BlackElo "1862"]
[Annotator "NA RC"]
[PlyCount "27"]
[EventDate "2020.01.14"]
[EventType "swiss"]
[EventCountry "NZL"]
[SourceTitle "playchess.com"]
[Source "ChessBase"]
[SourceQuality "1"]
[TimeControl "40/5400+30:1800+30"]

{[%evp 12,25,22,41,35,6,2,24,27,30,33,32,51,30,63,53]} 1. e4 {[%emt 0:00:00]} c6 {[%emt 0:00:49]} 2. Nc3 {[%emt 0:01:24]} d5 {[%emt 0:00:17]} 3. d4 {[%emt 0:00:06]} dxe4 {[%emt 0:01:39]} 4. Nxe4 {[%emt 0:00:07]} Bf5 {[%emt 0:00:36]} 5. Ng3 {[%emt 0:00:09]} Bg6 {[%emt 0:00:05]} 6. N1e2 {[%emt 0:00:24]} e6 {[%emt 0:03:09]} 7. Nf4 {[%emt 0:03:27]} Bd6 {[%emt 0:02:18]} 8. Nxg6 {[%emt 0:14:03]} hxg6 {[%emt 0:00:19]} 9. Ne4 {[%emt 0:03:25]} Be7 {[%emt 0:02:51]} 10. c3 {[%emt 0:05:00]} Nf6 {[%emt 0:06:42]} 11. Bd3 {[%emt 0:02:27]} Nxe4 {[%emt 0:06:04]} 12. Bxe4 {[%emt 0:01:32]} Qc7 $14 {[%emt 0:00:33]} 13. g3 {[%emt 0:10:43]} Nd7 {[%emt 0:01:55]} 14. Bf4 {[%emt 0:04:22]} 1/2-1/2